fUST/lending_fUST_20250607
["ID","MTS","AMOUNT","RATE_DAILY","PERIOD"]
[364920834,1749300648368,-440.0,0.00020273,2]
[364920835,1749300648378,-380.0,0.00020273,2]
[364920836,1749300648387,-440.0,0.00020273,2]
[364920837,1749300648397,-440.0,0.00020273,2]
[364920838,1749300648406,-440.0,0.00020273,2]
[364920839,1749300648416,-440.0,0.00020273,2]
[364920840,1749300648426,-440.0,0.00020273,2]
[364920841,1749300648437,-440.0,0.00020273,2]
[364920842,1749300648447,-440.0,0.00020273,2]
[364920843,1749300648457,-440.0,0.00020273,2]
[364920844,1749300648467,-440.0,0.00020273,2]
[364920845,1749300648477,-440.0,0.00020273,2]
[364920846,1749300648487,-440.0,0.00020273,2]
[364920847,1749300648497,-440.0,0.00020273,2]
[364920848,1749300648507,-405.26542395,0.00020273,2]
[364920849,1749300648517,-440.0,0.00020273,2]
[364920850,1749300648528,-413.58500136,0.00020273,2]
[364920851,1749300648538,-440.0,0.00020273,2]
[364920852,1749300648550,-440.0,0.00020273,2]
[364920853,1749300648562,-440.0,0.00020273,2]
[364920854,1749300648571,-440.0,0.00020273,2]
[364920855,1749300648582,-440.0,0.00020273,2]
[364920856,1749300648593,-440.0,0.00020273,2]
[364920857,1749300648604,-440.0,0.00020273,2]
[364920858,1749300648614,-440.0,0.00020273,2]
[364920859,1749300648624,-440.0,0.00020273,2]
[364920860,1749300648635,-440.0,0.00020273,2]
[364920861,1749300648646,-440.0,0.00020273,2]
[364920862,1749300648743,-440.0,0.00020273,2]
[364920863,1749300648753,-440.0,0.00020273,2]
[364920864,1749300648763,-440.0,0.00020273,2]
[364920865,1749300648774,-440.0,0.00020273,2]
[364920866,1749300648785,-440.0,0.00020273,2]
[364920867,1749300648794,-440.0,0.00020273,2]
[364920868,1749300648805,-440.0,0.00020273,2]
[364920869,1749300648816,-440.0,0.00020273,2]
[364920870,1749300648825,-440.0,0.00020273,2]
[364920871,1749300648834,-440.0,0.00020273,2]
[364920872,1749300648844,-440.0,0.00020273,2]
[364920873,1749300648854,-440.0,0.00020273,2]
[364920874,1749300648864,-440.0,0.00020273,2]
[364920875,1749300648874,-440.0,0.00020273,2]
[364920876,1749300648883,-380.0,0.00020273,2]
[364920877,1749300648892,-440.0,0.00020273,2]
[364920878,1749300648902,-440.0,0.00020273,2]
[364920879,1749300648912,-440.0,0.00020273,2]
[364920880,1749300648923,-440.0,0.00020273,2]
[364920881,1749300648932,-440.0,0.00020273,2]
[364920882,1749300648942,-440.0,0.00020273,2]
[364920883,1749300648951,-440.0,0.00020273,2]
[364920884,1749300648961,-440.0,0.00020273,2]
[364920885,1749300648971,-440.0,0.00020273,2]
[364920886,1749300648980,-440.0,0.00020273,2]
[364920887,1749300648990,-1210.366154,0.00020273,2]
[364920888,1749300649000,-1210.366154,0.00020273,2]
[364920889,1749300649010,-440.0,0.00020273,2]
[364920890,1749300649019,-440.0,0.00020273,2]
[364920891,1749300649029,-335.08078176,0.00020273,2]
[364920892,1749300649039,-440.0,0.00020273,2]
[364920893,1749300649048,-440.0,0.00020273,2]
[364920894,1749300649058,-440.0,0.00020273,2]
[364920895,1749300649068,-440.0,0.00020273,2]
[364920896,1749300649077,-440.0,0.00020273,2]
[364920897,1749300649087,-440.0,0.00020273,2]
[364920898,1749300649096,-440.0,0.00020273,2]
[364920899,1749300649107,-795.29,0.00020273,2]
[364920900,1749300649117,-1214.15,0.00020273,2]
[364920901,1749300649127,-440.0,0.00020273,2]
[364920902,1749300649137,-517.56,0.00020273,2]
[364920903,1749300649147,-440.0,0.00020273,2]
[364920904,1749300649157,-440.0,0.00020273,2]
[364920905,1749300649167,-584.65,0.00020273,2]
[364920906,1749300649177,-156.913369,0.00020273,2]
[364920907,1749300649187,-1313.55,0.00020273,2]
[364920908,1749300649197,-440.0,0.00020273,2]
[364920909,1749300649207,-440.0,0.00020273,2]
[364920910,1749300649217,-440.0,0.00020273,2]
[364920911,1749300649227,-576.42,0.00020273,2]
[364920912,1749300649236,-440.0,0.00020273,2]
[364920913,1749300649246,-440.0,0.00020273,2]
[364920914,1749300649256,-440.0,0.00020273,2]
[364920915,1749300649266,-390.0,0.00020273,2]
[364920916,1749300649275,-3803.52,0.00020273,2]
[364920917,1749300649285,-440.0,0.00020273,2]
[364920918,1749300649294,-440.0,0.00020273,2]
[364920919,1749300649304,-440.0,0.00020273,2]
[364920920,1749300649314,-380.0,0.00020273,2]
[364920921,1749300649325,-440.0,0.00020273,2]
[364920922,1749300649334,-1280.59,0.00020273,2]
[364920923,1749300649344,-440.0,0.00020273,2]
[364920924,1749300649354,-454.5057878,0.00020273,2]
[364920925,1749300649366,-440.0,0.00020273,2]
[364920926,1749300649376,-270.0,0.00020273,2]
[364920927,1749300649386,-498.0,0.00020273,2]
[364920928,1749300649396,-440.0,0.00020273,2]
[364920929,1749300649406,-440.0,0.00020273,2]
[364920930,1749300649416,-440.0,0.00020273,2]
[364920931,1749300649426,-440.0,0.00020273,2]
[364920932,1749300649436,-500.0,0.00020273,2]
[364920933,1749300649446,-440.0,0.00020273,2]
[364920934,1749300649455,-440.0,0.00020273,2]
[364920935,1749300649465,-501.42,0.00020273,2]
[364920936,1749300649475,-444.08485364,0.00020273,2]
[364920937,1749300649485,-708.18,0.00020273,2]
[364920938,1749300649496,-440.0,0.00020273,2]
[364920939,1749300649506,-440.0,0.00020273,2]
[364920940,1749300649515,-2486.9,0.00020273,2]
[364920941,1749300649526,-1293.92,0.00020273,2]
[364920942,1749300649536,-440.0,0.00020273,2]
[364920943,1749300649546,-440.0,0.00020273,2]
[364920944,1749300649558,-422.02,0.00020273,2]
[364920945,1749300649570,-861.56,0.00020273,2]
[364920946,1749300649581,-440.0,0.00020273,2]
[364920947,1749300649591,-440.0,0.00020273,2]
[364920948,1749300649602,-568.04,0.00020273,2]
[364920949,1749300649612,-440.0,0.00020273,2]
[364920950,1749300649622,-210.42,0.00020273,2]
[364920951,1749300649633,-440.0,0.00020273,2]
[364920952,1749300649643,-440.0,0.00020273,2]
[364920953,1749300649653,-440.0,0.00020273,2]
[364920954,1749300649663,-440.0,0.00020273,2]
[364920955,1749300649673,-440.0,0.00020273,2]
[364920956,1749300649684,-340.09156698,0.00020273,2]
[364920957,1749300649693,-9931.75,0.00020273,2]
[364920958,1749300649704,-3453.14,0.00020273,2]
[364920959,1749300649714,-440.0,0.00020273,2]
[364920960,1749300649734,-440.0,0.00020273,2]
[364920961,1749300649751,-440.0,0.00020273,2]
[364920962,1749300649762,-3871.85,0.00020273,2]
[364920963,1749300649772,-3264.02,0.00020273,2]
[364920964,1749300649782,-440.0,0.00020273,2]
[364920965,1749300649792,-440.0,0.00020273,2]
[364920966,1749300649803,-609.82,0.00020273,2]
[364920967,1749300649813,-797.01,0.00020273,2]
[364920968,1749300649823,-183.197886,0.00020273,2]
[364920969,1749300649833,-440.0,0.00020273,2]
[364920970,1749300649842,-183.197886,0.00020273,2]
[364920971,1749300649853,-3300.67,0.00020273,2]
[364920972,1749300649863,-440.0,0.00020273,2]
[364920973,1749300649872,-440.0,0.00020273,2]
[364920974,1749300649882,-440.0,0.00020273,2]
[364920975,1749300649892,-440.0,0.00020273,2]
[364920976,1749300649901,-440.0,0.00020273,2]
[364920977,1749300649911,-440.0,0.00020273,2]
[364920978,1749300649920,-440.0,0.00020273,2]
[364920979,1749300649930,-440.0,0.00020273,2]
[364920980,1749300649939,-533.74,0.00020273,2]
[364920981,1749300649949,-515.63563806,0.00020273,2]
[364920982,1749300649959,-1870.46,0.00020273,2]
[364920983,1749300649969,-440.0,0.00020273,2]
[364920984,1749300649980,-1404.67,0.00020273,2]
[364920985,1749300649990,-440.0,0.00020273,2]
[364920986,1749300650000,-440.0,0.00020273,2]
[364920987,1749300650010,-2939.08,0.00020273,2]
[364920988,1749300650020,-360.0,0.00020273,2]
[364920989,1749300650031,-440.0,0.00020273,2]
[364920990,1749300650041,-440.0,0.00020273,2]
[364920991,1749300650051,-440.0,0.00020273,2]
[364920992,1749300650060,-440.0,0.00020273,2]
[364920993,1749300650071,-1844.80616247,0.00020417,3]
[364920994,1749300650081,-200.0,0.00020449,2]
[364920995,1749300650090,-1732.2,0.00020538,3]
[364920996,1749300650101,-866.1,0.00020538,3]
[364920997,1749300650110,-433.04,0.00020538,3]
[364920998,1749300650197,-430.28075095,0.00020547,2]
[364920999,1749300650207,-440.0,0.00020547,2]
[364921000,1749300650219,-350.0,0.00020547,2]
[364921001,1749300650229,-440.0,0.00020547,2]
[364921002,1749300650239,-440.0,0.00020547,2]
[364921003,1749300650250,-440.0,0.00020547,2]
[364921004,1749300650259,-440.0,0.00020547,2]
[364921005,1749300650270,-440.0,0.00020547,2]
[364921006,1749300650279,-440.0,0.00020547,2]
[364921007,1749300650289,-440.0,0.00020547,2]
[364921008,1749300650300,-267.77189891,0.00020547,2]
[364921009,1749300650311,-440.0,0.00020547,2]
[364921010,1749300650322,-440.0,0.00020547,2]
[364921011,1749300650331,-440.0,0.00020547,2]
[364921012,1749300650341,-440.0,0.00020547,2]
[364921013,1749300650352,-440.0,0.00020547,2]
[364921014,1749300650361,-440.0,0.00020547,2]
[364921015,1749300650371,-440.0,0.00020547,2]
[364921016,1749300650384,-449.44253526,0.00020547,2]
[364921017,1749300650394,-440.0,0.00020547,2]
[364921018,1749300650404,-440.0,0.00020547,2]
[364921019,1749300650414,-440.0,0.00020547,2]
[364921020,1749300650424,-440.0,0.00020547,2]
[364921021,1749300650435,-440.0,0.00020547,2]
[364921022,1749300650446,-348.24031496,0.00020547,2]
[364921023,1749300650456,-440.0,0.00020547,2]
[364921024,1749300650467,-440.0,0.00020547,2]
[364921025,1749300650478,-551.26777517,0.00020547,2]
[364921026,1749300650488,-370.0,0.00020547,2]
[364921027,1749300650497,-440.0,0.00020547,2]
[364921028,1749300650507,-440.0,0.00020547,2]
[364921029,1749300650518,-360.0,0.00020547,2]
[364921030,1749300650528,-440.0,0.00020547,2]
[364921031,1749300650540,-476.98738653,0.00020547,2]
[364921032,1749300650551,-440.0,0.00020547,2]
[364921033,1749300650565,-350.0,0.00020547,2]
[364921034,1749300650575,-440.0,0.00020547,2]
[364921035,1749300650585,-440.0,0.00020547,2]
[364921036,1749300650595,-440.0,0.00020547,2]
[364921037,1749300650607,-440.0,0.00020547,2]
[364921038,1749300650616,-375.81428976,0.00020547,2]
[364921039,1749300650627,-440.0,0.00020547,2]
[364921040,1749300650641,-440.0,0.00020547,2]
[364921041,1749300650651,-440.0,0.00020547,2]
[364921042,1749300650661,-440.0,0.00020547,2]
[364921043,1749300650670,-440.0,0.00020547,2]
[364921044,1749300650680,-440.0,0.00020547,2]
[364921045,1749300650690,-440.0,0.00020547,2]
[364921046,1749300650699,-440.0,0.00020547,2]
[364921047,1749300650710,-440.0,0.00020547,2]
[364921048,1749300650720,-440.0,0.00020547,2]
[364921049,1749300650730,-440.0,0.00020547,2]
[364921050,1749300650739,-440.0,0.00020547,2]
[364921051,1749300650749,-795.29,0.00020547,2]
[364921052,1749300650760,-160.557406,0.00020547,2]
[364921053,1749300650770,-1214.15,0.00020547,2]
[364921054,1749300650780,-440.0,0.00020547,2]
[364921055,1749300650790,-517.56,0.00020547,2]
[364921056,1749300650800,-440.0,0.00020547,2]
[364921057,1749300650809,-440.0,0.00020547,2]
[364921058,1749300650819,-584.65,0.00020547,2]
[364921059,1749300650829,-1313.55,0.00020547,2]
[364921060,1749300650838,-440.0,0.00020547,2]
[364921061,1749300650848,-440.0,0.00020547,2]
[364921062,1749300650858,-440.0,0.00020547,2]
[364921063,1749300650868,-576.42,0.00020547,2]
[364921064,1749300650877,-440.0,0.00020547,2]
[364921065,1749300650888,-440.0,0.00020547,2]
[364921066,1749300650899,-440.0,0.00020547,2]
[364921067,1749300650910,-3803.52,0.00020547,2]
[364921068,1749300650920,-440.0,0.00020547,2]
[364921069,1749300650930,-440.0,0.00020547,2]
[364921070,1749300650940,-440.0,0.00020547,2]
[364921071,1749300650949,-440.0,0.00020547,2]
[364921072,1749300650959,-370.0,0.00020547,2]
[364921073,1749300650969,-1280.59,0.00020547,2]
[364921074,1749300650979,-440.0,0.00020547,2]
[364921075,1749300650989,-498.0,0.00020547,2]
[364921076,1749300650999,-440.0,0.00020547,2]
[364921077,1749300651009,-440.0,0.00020547,2]
[364921078,1749300651020,-440.0,0.00020547,2]
[364921079,1749300651030,-440.0,0.00020547,2]
[364921080,1749300651040,-440.0,0.00020547,2]
[364921081,1749300651050,-500.0,0.00020547,2]
[364921082,1749300651059,-440.0,0.00020547,2]
[364921083,1749300651069,-501.42,0.00020547,2]
[364921084,1749300651079,-708.18,0.00020547,2]
[364921085,1749300651091,-435.88,0.00020547,2]
[364921086,1749300651100,-440.0,0.00020547,2]
[364921087,1749300651111,-2486.9,0.00020547,2]
[364921088,1749300651120,-1293.92,0.00020547,2]
[364921089,1749300651130,-440.0,0.00020547,2]
[364921090,1749300651140,-440.0,0.00020547,2]
[364921091,1749300651149,-861.56,0.00020547,2]
[364921092,1749300651159,-440.0,0.00020547,2]
[364921093,1749300651169,-440.0,0.00020547,2]
[364921094,1749300651178,-568.04,0.00020547,2]
[364921095,1749300651188,-440.0,0.00020547,2]
[364921096,1749300651198,-151.0,0.00020547,2]
[364921097,1749300651207,-440.0,0.00020547,2]
[364921098,1749300651216,-440.0,0.00020547,2]
[364921099,1749300651226,-440.0,0.00020547,2]
[364921100,1749300651235,-587.37314598,0.00020547,2]
[364921101,1749300651245,-9931.75,0.00020547,2]
[364921102,1749300651255,-3453.14,0.00020547,2]
[364921103,1749300651264,-440.0,0.00020547,2]
[364921104,1749300651274,-440.0,0.00020547,2]
[364921105,1749300651283,-440.0,0.00020547,2]
[364921106,1749300651293,-3871.85,0.00020547,2]
[364921107,1749300651302,-3264.02,0.00020547,2]
[364921108,1749300651312,-440.0,0.00020547,2]
[364921109,1749300651322,-609.82,0.00020547,2]
[364921110,1749300651333,-797.01,0.00020547,2]
[364921111,1749300651342,-440.0,0.00020547,2]
[364921112,1749300651352,-3300.67,0.00020547,2]
[364921113,1749300651361,-440.0,0.00020547,2]
[364921114,1749300651372,-440.0,0.00020547,2]
[364921115,1749300651381,-440.0,0.00020547,2]
[364921116,1749300651391,-151.0,0.00020547,2]
[364921117,1749300651400,-440.0,0.00020547,2]
[364921118,1749300651410,-440.0,0.00020547,2]
[364921119,1749300651420,-440.0,0.00020547,2]
[364921120,1749300651429,-440.0,0.00020547,2]
[364921121,1749300651439,-440.0,0.00020547,2]
[364921122,1749300651448,-533.74,0.00020547,2]
[364921123,1749300651530,-1870.46,0.00020547,2]
[364921124,1749300651540,-440.0,0.00020547,2]
[364921125,1749300651550,-1404.67,0.00020547,2]
[364921126,1749300651564,-440.0,0.00020547,2]
[364921127,1749300651574,-500.0,0.00020547,2]
[364921128,1749300651584,-2939.08,0.00020547,2]
[364921129,1749300651595,-151.0,0.00020547,2]
[364921130,1749300651605,-530.04075808,0.00020547,2]
[364921131,1749300651616,-440.0,0.00020547,2]
[364921132,1749300651626,-440.0,0.00020547,2]
[364921133,1749300651638,-666.0,0.00020548,2]
[364921134,1749300651649,-3965.8,0.00020588,2]
[364921135,1749300651658,-1844.80616247,0.0002059,3]
[364921136,1749300651668,-1582.58,0.000206,2]
[364921137,1749300651678,-807.34,0.000206,2]
[364921138,1749300651688,-35795.23,0.000206,2]
[364921139,1749300651698,-289.571986,0.000206,2]
[364921140,1749300651708,-4000.0,0.00020698,4]
[364921141,1749300651718,-151.0,0.000207,3]
[364921142,1749300651728,-1844.80616247,0.00020762,3]
[364921143,1749300651738,-500.0,0.00020805,2]
[364921144,1749300651747,-380.0,0.00020821,2]
[364921145,1749300651759,-440.0,0.00020821,2]
[364921146,1749300651769,-440.0,0.00020821,2]
[364921147,1749300651779,-440.0,0.00020821,2]
[364921148,1749300651788,-440.0,0.00020821,2]
[364921149,1749300651798,-440.0,0.00020821,2]
[364921150,1749300651809,-371.6516569,0.00020821,2]
[364921151,1749300651819,-440.0,0.00020821,2]
[364921152,1749300651829,-440.0,0.00020821,2]
[364921153,1749300651839,-440.0,0.00020821,2]
[364921154,1749300651848,-440.0,0.00020821,2]
[364921155,1749300651858,-220.0,0.00020821,2]
[364921156,1749300651869,-440.0,0.00020821,2]
[364921157,1749300651879,-440.0,0.00020821,2]
[364921158,1749300651888,-440.0,0.00020821,2]
[364921159,1749300651898,-440.0,0.00020821,2]
[364921160,1749300651908,-440.0,0.00020821,2]
[364921161,1749300651918,-440.0,0.00020821,2]
[364921162,1749300651928,-440.0,0.00020821,2]
[364921163,1749300651938,-440.0,0.00020821,2]
[364921164,1749300651948,-440.0,0.00020821,2]
[364921165,1749300651958,-440.0,0.00020821,2]
[364921166,1749300651968,-440.0,0.00020821,2]
[364921167,1749300651977,-440.0,0.00020821,2]
[364921168,1749300651987,-440.0,0.00020821,2]
[364921169,1749300651996,-440.0,0.00020821,2]
[364921170,1749300652006,-440.0,0.00020821,2]
[364921171,1749300652015,-440.0,0.00020821,2]
[364921172,1749300652024,-440.0,0.00020821,2]
[364921173,1749300652034,-440.0,0.00020821,2]
[364921174,1749300652044,-440.0,0.00020821,2]
[364921175,1749300652053,-440.0,0.00020821,2]
[364921176,1749300652063,-440.0,0.00020821,2]
[364921177,1749300652072,-440.0,0.00020821,2]
[364921178,1749300652081,-440.0,0.00020821,2]
[364921179,1749300652091,-440.0,0.00020821,2]
[364921180,1749300652101,-795.29,0.00020821,2]
[364921181,1749300652111,-683.220701,0.00020821,2]
[364921182,1749300652120,-1214.15,0.00020821,2]
[364921183,1749300652130,-440.0,0.00020821,2]
[364921184,1749300652139,-683.220701,0.00020821,2]
[364921185,1749300652149,-517.56,0.00020821,2]
[364921186,1749300652158,-440.0,0.00020821,2]
[364921187,1749300652167,-440.0,0.00020821,2]
[364921188,1749300652176,-584.65,0.00020821,2]
[364921189,1749300652187,-1313.55,0.00020821,2]
[364921190,1749300652196,-440.0,0.00020821,2]
[364921191,1749300652207,-440.0,0.00020821,2]
[364921192,1749300652218,-440.0,0.00020821,2]
[364921193,1749300652227,-576.42,0.00020821,2]
[364921194,1749300652237,-440.0,0.00020821,2]
[364921195,1749300652246,-440.0,0.00020821,2]
[364921196,1749300652255,-440.0,0.00020821,2]
[364921197,1749300652265,-3803.52,0.00020821,2]
[364921198,1749300652273,-440.0,0.00020821,2]
[364921199,1749300652283,-440.0,0.00020821,2]
[364921200,1749300652292,-440.0,0.00020821,2]
[364921201,1749300652301,-249.728858,0.00020821,2]
[364921202,1749300652311,-249.728858,0.00020821,2]
[364921203,1749300652321,-409.08174055,0.00020821,2]
[364921204,1749300652331,-1280.59,0.00020821,2]
[364921205,1749300652341,-330.89389746,0.00020821,2]
[364921206,1749300652352,-498.0,0.00020821,2]
[364921207,1749300652363,-227.66782743,0.00020821,2]
[364921208,1749300652373,-440.0,0.00020821,2]
[364921209,1749300652383,-440.0,0.00020821,2]
[364921210,1749300652394,-440.0,0.00020821,2]
[364921211,1749300652404,-440.0,0.00020821,2]
[364921212,1749300652415,-500.0,0.00020821,2]
[364921213,1749300652424,-388.50620666,0.00020821,2]
[364921214,1749300652434,-501.42,0.00020821,2]
[364921215,1749300652443,-708.18,0.00020821,2]
[364921216,1749300652453,-440.0,0.00020821,2]
[364921217,1749300652462,-2486.9,0.00020821,2]
[364921218,1749300652472,-1293.92,0.00020821,2]
[364921219,1749300652482,-440.0,0.00020821,2]
[364921220,1749300652492,-440.0,0.00020821,2]
[364921221,1749300652501,-861.56,0.00020821,2]
[364921222,1749300652512,-440.0,0.00020821,2]
[364921223,1749300652521,-502.20266793,0.00020821,2]
[364921224,1749300652531,-568.04,0.00020821,2]
[364921225,1749300652541,-440.0,0.00020821,2]
[364921226,1749300652551,-440.0,0.00020821,2]
[364921227,1749300652562,-440.0,0.00020821,2]
[364921228,1749300652574,-440.0,0.00020821,2]
[364921229,1749300652584,-9931.75,0.00020821,2]
[364921230,1749300652594,-3453.14,0.00020821,2]
[364921231,1749300652605,-440.0,0.00020821,2]
[364921232,1749300652615,-462.04,0.00020821,2]
[364921233,1749300652625,-440.0,0.00020821,2]
[364921234,1749300652635,-3871.85,0.00020821,2]
[364921235,1749300652645,-3264.02,0.00020821,2]
[364921236,1749300652656,-440.0,0.00020821,2]
[364921237,1749300652668,-609.82,0.00020821,2]
[364921238,1749300652760,-797.01,0.00020821,2]
[364921239,1749300652771,-440.0,0.00020821,2]
[364921240,1749300652782,-3300.67,0.00020821,2]
[364921241,1749300652793,-440.0,0.00020821,2]
[364921242,1749300652804,-440.0,0.00020821,2]
[364921243,1749300652814,-440.0,0.00020821,2]
[364921244,1749300652825,-440.0,0.00020821,2]
[364921245,1749300652835,-440.0,0.00020821,2]
[364921246,1749300652845,-362.7260579,0.00020821,2]
[364921247,1749300652855,-440.0,0.00020821,2]
[364921248,1749300652864,-533.74,0.00020821,2]
[364921249,1749300652874,-1870.46,0.00020821,2]
[364921250,1749300652885,-1404.67,0.00020821,2]
[364921251,1749300652895,-440.0,0.00020821,2]
[364921252,1749300652907,-500.0,0.00020821,2]
[364921253,1749300652917,-500.0,0.00020821,2]
[364921254,1749300652927,-2939.08,0.00020821,2]
[364921255,1749300652936,-500.0,0.00020821,2]
[364921256,1749300652947,-500.0,0.00020821,2]
[364921257,1749300652956,-500.0,0.00020821,2]
[364921258,1749300652966,-500.0,0.00020821,2]
[364921259,1749300652976,-500.0,0.00020821,2]
[364921260,1749300652986,-500.0,0.00020821,2]
[364921261,1749300652996,-266.0,0.00020821,2]
[364921262,1749300653006,-440.0,0.00020821,2]
[364921263,1749300653016,-343.870631,0.00020821,2]
[364921264,1749300653026,-304.0,0.00020888,2]
[364921265,1749300653036,-420.0,0.00020892,2]
[364921266,1749300653046,-151.0,0.000209,3]
[364921267,1749300653056,-1844.80616247,0.00020934,4]
[364921268,1749300653066,-440.0,0.00021095,2]
[364921269,1749300653075,-440.0,0.00021095,2]
[364921270,1749300653085,-440.0,0.00021095,2]
[364921271,1749300653095,-440.0,0.00021095,2]
[364921272,1749300653105,-440.0,0.00021095,2]
[364921273,1749300653115,-440.0,0.00021095,2]
[364921274,1749300653124,-440.0,0.00021095,2]
[364921275,1749300653134,-166.54201458,0.00021095,2]
[364921276,1749300653145,-440.0,0.00021095,2]
[364921277,1749300653155,-440.0,0.00021095,2]
[364921278,1749300653164,-440.0,0.00021095,2]
[364921279,1749300653174,-440.0,0.00021095,2]
[364921280,1749300653183,-440.0,0.00021095,2]
[364921281,1749300653194,-440.0,0.00021095,2]
[364921282,1749300653204,-440.0,0.00021095,2]
[364921283,1749300653214,-440.0,0.00021095,2]
[364921284,1749300653224,-440.0,0.00021095,2]
[364921285,1749300653234,-440.0,0.00021095,2]
[364921286,1749300653243,-440.0,0.00021095,2]
[364921287,1749300653253,-440.0,0.00021095,2]
[364921288,1749300653263,-320.0,0.00021095,2]
[364921289,1749300653273,-440.0,0.00021095,2]
[364921290,1749300653283,-440.0,0.00021095,2]
[364921291,1749300653293,-440.0,0.00021095,2]
[364921292,1749300653302,-440.0,0.00021095,2]
[364921293,1749300653312,-440.0,0.00021095,2]
[364921294,1749300653323,-795.29,0.00021095,2]
[364921295,1749300653333,-1214.15,0.00021095,2]
[364921296,1749300653343,-440.0,0.00021095,2]
[364921297,1749300653353,-517.56,0.00021095,2]
[364921298,1749300653363,-440.0,0.00021095,2]
[364921299,1749300653372,-584.65,0.00021095,2]
[364921300,1749300653382,-1313.55,0.00021095,2]
[364921301,1749300653392,-440.0,0.00021095,2]
[364921302,1749300653402,-440.0,0.00021095,2]
[364921303,1749300653412,-219.2560603,0.00021095,2]
[364921304,1749300653423,-576.42,0.00021095,2]
[364921305,1749300653432,-440.0,0.00021095,2]
[364921306,1749300653442,-440.0,0.00021095,2]
[364921307,1749300653452,-440.0,0.00021095,2]
[364921308,1749300653461,-3803.52,0.00021095,2]
[364921309,1749300653471,-440.0,0.00021095,2]
[364921310,1749300653480,-440.0,0.00021095,2]
[364921311,1749300653491,-440.0,0.00021095,2]
[364921312,1749300653501,-1280.59,0.00021095,2]
[364921313,1749300653511,-498.0,0.00021095,2]
[364921314,1749300653521,-417.52044542,0.00021095,2]
[364921315,1749300653531,-440.0,0.00021095,2]
[364921316,1749300653541,-440.0,0.00021095,2]
[364921317,1749300653551,-440.0,0.00021095,2]
[364921318,1749300653564,-500.0,0.00021095,2]
[364921319,1749300653575,-501.42,0.00021095,2]
[364921320,1749300653584,-708.18,0.00021095,2]
[364921321,1749300653594,-440.0,0.00021095,2]
[364921322,1749300653603,-2486.9,0.00021095,2]
[364921323,1749300653614,-1293.92,0.00021095,2]
[364921324,1749300653624,-440.0,0.00021095,2]
[364921325,1749300653634,-440.0,0.00021095,2]
[364921326,1749300653643,-861.56,0.00021095,2]
[364921327,1749300653654,-440.0,0.00021095,2]
[364921328,1749300653664,-568.04,0.00021095,2]
[364921329,1749300653674,-440.0,0.00021095,2]
[364921330,1749300653684,-151.0,0.00021095,2]
[364921331,1749300653694,-440.0,0.00021095,2]
[364921332,1749300653704,-440.0,0.00021095,2]
[364921333,1749300653713,-440.0,0.00021095,2]